fUST/lending_fUST_20251230
["ID","MTS","AMOUNT","RATE_DAILY","PERIOD"]
[400097538,1767105038840,-1161.57493787,0.00024141,2]
[400097539,1767105038851,-331596.20781339,0.00024142,2]
[400097540,1767105038860,-318.27129001,0.00024162,2]
[400097541,1767105038870,-156.35104135,0.00024171,2]
[400097542,1767105038880,-235.32,0.000242,7]
[400097543,1767105038890,-662.11,0.000242,14]
[400097544,1767105038899,-318.27129001,0.00024307,4]
[400097545,1767105038909,-830.03,0.00024382,2]
[400097546,1767105038919,-500.0,0.00024383,2]
[400097547,1767105038928,-500.0,0.00024383,2]
[400097548,1767105038938,-318.27129001,0.00024453,6]
[400097549,1767105038948,-156.35104135,0.00024462,17]
[400097550,1767105038958,-318.27129001,0.00024598,8]
[400097551,1767105038967,-2053.69682378,0.0002465,2]
[400097552,1767105038981,-22341.30425016,0.0002465,2]
[400097553,1767105038990,-500.0,0.00024657,2]
[400097554,1767105039114,-500.0,0.00024657,2]
[400097555,1767105039124,-318.27129001,0.00024743,10]
[400097556,1767105039134,-156.35104135,0.00024753,32]
[400097557,1767105039144,-500.0,0.00024873,2]
[400097558,1767105039154,-318.27129001,0.00024889,12]
[400097559,1767105039164,-694.78938109,0.00024899,2]
[400097560,1767105039174,-500.0,0.00024931,2]
[400097561,1767105039184,-620.05,0.00024931,2]
[400097562,1767105039193,-185.35259798,0.00024965,2]
[400097563,1767105039204,-185.35259799,0.00024967,2]
[400097564,1767105039216,-10390.32906121,0.00025,2]
[400097565,1767105039226,-194807.99394161,0.00025,15]
[400097566,1767105039235,-1084.27758702,0.00025,2]
[400097567,1767105039246,-11293.20269687,0.00025,2]
[400097568,1767105039256,-2671.67802026,0.00025,2]
[400097569,1767105039265,-10364.0,0.00025,2]
[400097570,1767105039274,-500.0,0.00025,2]
[400097571,1767105039284,-1123.0,0.00025,5]
[400097572,1767105039292,-758.33034177,0.00025,2]
[400097573,1767105039302,-4521.75,0.00025,2]
[400097574,1767105039311,-318.27129001,0.00025034,14]
[400097575,1767105039320,-156.35104135,0.00025044,48]
[400097576,1767105039329,-318.27129001,0.00025179,16]
[400097577,1767105039339,-579.46320172,0.000252,5]
[400097578,1767105039348,-201.17,0.00025205,2]
[400097579,1767105039357,-312.0,0.00025271,2]
[400097580,1767105039366,-318.27129001,0.00025325,18]
[400097581,1767105039376,-156.35104135,0.00025334,63]
[400097582,1767105039385,-900.0,0.00025469,3]
[400097583,1767105039394,-318.27129001,0.0002547,20]
[400097584,1767105039403,-1000.0,0.000255,2]
[400097585,1767105039413,-235.32,0.000255,7]
[400097586,1767105039423,-662.11,0.000255,14]
[400097587,1767105039432,-318.27129001,0.00025615,22]
[400097588,1767105039441,-156.35104135,0.00025625,79]
[400097589,1767105039450,-500.0,0.00025755,7]
[400097590,1767105039459,-318.27129001,0.00025761,24]
[400097591,1767105039468,-1000.0,0.0002587,2]
[400097592,1767105039478,-318.27129001,0.00025906,26]
[400097593,1767105039488,-156.35104135,0.00025916,94]
[400097594,1767105039500,-399.86536022,0.00025966,2]
[400097595,1767105039509,-12555.8315577,0.0002599,2]
[400097596,1767105039519,-750.85404068,0.0002599,2]
[400097597,1767105039529,-39742.13262439,0.00026,10]
[400097598,1767105039538,-529.2410511,0.00026,2]
[400097599,1767105039548,-17008.89367988,0.00026,2]
[400097600,1767105039558,-318.27129001,0.00026051,28]
[400097601,1767105039567,-318.27129001,0.00026197,30]
[400097602,1767105039577,-4521.75,0.000262,2]
[400097603,1767105039586,-694.78938107,0.00026583,2]
[400097604,1767105039596,-830.03,0.00026625,2]
[400097605,1767105039606,-4473.0,0.00026666,2]
[400097606,1767105039615,-1364.0,0.00026799,2]
[400097607,1767105039626,-2156.0,0.00026799,2]
[400097608,1767105039635,-1911.02547029,0.00026888,2]
[400097609,1767105039645,-206.706,0.00026888,14]
[400097610,1767105039655,-335.311,0.00027,2]
[400097611,1767105039664,-3139.70711242,0.00027226,2]
[400097612,1767105039674,-339.0,0.00027271,2]
[400097613,1767105039683,-235.32,0.000273,7]
[400097614,1767105039693,-662.11,0.000273,14]
[400097615,1767105039703,-12555.8315577,0.00027385,2]
[400097616,1767105039712,-750.85404068,0.00027385,2]
[400097617,1767105039721,-568.73029361,0.0002739,7]
[400097618,1767105039730,-500.0,0.00027396,5]
[400097619,1767105039740,-500.0,0.00027396,5]
[400097620,1767105039752,-500.0,0.00027396,5]
[400097621,1767105039763,-500.0,0.00027396,5]
[400097622,1767105039772,-250.0,0.00027396,5]
[400097623,1767105039781,-250.0,0.00027396,5]
[400097624,1767105039791,-250.0,0.00027396,5]
[400097626,1767105039801,-496.47127164,0.00027396,5]
[400097627,1767105039811,-257.40548047,0.00027396,5]
[400097628,1767105039820,-514.84070869,0.00027396,5]
[400097629,1767105039830,-533.88981491,0.00027396,5]
[400097630,1767105039839,-553.64373807,0.00027396,5]
[400097631,1767105039849,-2398.4119403,0.00027396,5]
[400097633,1767105039859,-490.47614434,0.00027396,5]
[400097634,1767105039868,-375.15596489,0.00027396,5]
[400097636,1767105039878,-151.0,0.00027396,5]
[400097638,1767105039888,-151.0,0.00027396,5]
[400097639,1767105039899,-151.0,0.00027396,5]
[400097640,1767105039909,-151.0,0.00027396,5]
[400097641,1767105039918,-151.0,0.00027396,5]
[400097642,1767105039928,-151.0,0.00027396,5]
[400097644,1767105039938,-151.0,0.00027396,5]
[400097645,1767105039947,-151.0,0.00027396,5]
[400097647,1767105039957,-151.0,0.00027396,5]
[400097648,1767105039969,-151.0,0.00027396,5]
[400097649,1767105039978,-151.0,0.00027396,5]
[400097650,1767105039987,-151.0,0.00027396,5]
[400097651,1767105040000,-151.0,0.00027396,5]
[400097652,1767105040009,-151.0,0.00027396,5]
[400097653,1767105040019,-151.0,0.00027396,5]
[400097654,1767105040028,-210.0,0.00027397,2]
[400097655,1767105040038,-257.42092784,0.00027399,2]
[400097656,1767105040047,-945.64250073,0.00027399,2]
[400097657,1767105040056,-290.66041855,0.00027399,2]
[400097659,1767105040066,-500.0,0.00027683,7]
[400097660,1767105040076,-250.0,0.000277,10]
[400097661,1767105040085,-289986.75029285,0.0002772,2]
[400097662,1767105040104,-1637.85000219,0.0002772,2]
[400097663,1767105040115,-2313.90633025,0.0002772,2]
[400097691,1767105044743,-1981.85924301,0.00024953,2]
[400097697,1767105046231,-178.48639088,0.00024373,2]
[400097698,1767105046244,-1362.44315686,0.00024953,2]
[400097699,1767105046258,-627.0,0.00026599,2]
[400097700,1767105046269,-1000.0,0.000277,2]
[400097701,1767105046280,-5658.89764799,0.0002772,2]
[400097702,1767105125490,475.0,0.0002772,120]
[400097703,1767105125893,475.0,0.0002772,120]
[400097704,1767105126510,475.0,0.0002772,120]
[400097705,1767105126848,475.0,0.0002772,120]
[400097706,1767105127175,475.0,0.0002772,120]
[400097707,1767105127481,475.0,0.0002772,120]
[400097708,1767105127797,475.0,0.0002772,120]
[400097709,1767105128114,475.0,0.0002772,120]
[400097710,1767105128384,475.0,0.0002772,120]
[400097715,1767105728478,156.35104135,0.00025647,120]
[400097765,1767106153488,335.311,0.00028766,120]
[400097806,1767106232300,-300.0,0.00013697,2]
[400097808,1767106232310,-615.0,0.00013697,2]
[400097810,1767106232321,-500.0,0.00013698,2]
[400097812,1767106232331,-500.0,0.00013698,2]
[400097814,1767106232340,-149.5055936,0.00013698,2]
[400097816,1767106232355,-350.4944064,0.00013698,2]
[400097818,1767106232367,-500.0,0.00013698,2]
[400097820,1767106232379,-500.0,0.00013698,2]
[400097822,1767106232390,-588.86,0.00013698,2]
[400097824,1767106232401,-507.59279788,0.00013698,2]
[400097826,1767106232413,-500.0,0.00013698,2]
[400097828,1767106232424,-249.01,0.000137,2]
[400097830,1767106232436,-249.01,0.000137,2]
[400097832,1767106232447,-249.01,0.000137,2]
[400097834,1767106232458,-287.0,0.0001501,2]
[400097836,1767106232468,-177.0,0.00015698,2]
[400097838,1767106232479,-3019.70715126,0.00017415,2]
[400097840,1767106232488,-204.0,0.00017698,2]
[400097841,1767106232498,-231.0,0.00019698,2]
[400097843,1767106232510,-200.13171592,0.00021566,2]
[400097845,1767106232520,-258.0,0.00021698,2]
[400097847,1767106232531,-5176.5338439,0.00021905,2]
[400097849,1767106232540,-500.0,0.00022391,2]
[400097851,1767106232551,-500.0,0.00022391,2]
[400097853,1767106232561,-2109.42,0.00022391,2]
[400097854,1767106232573,-500.0,0.00022391,2]
[400097856,1767106232585,-1041.66666667,0.00022393,2]
[400097858,1767106232595,-500.0,0.00022463,2]
[400097860,1767106232606,-508.33422391,0.00022463,2]
[400097862,1767106232616,-500.0,0.00022463,2]
[400097864,1767106232627,-500.0,0.00022463,2]
[400097866,1767106232640,-500.0,0.00022463,2]
[400097868,1767106232651,-500.0,0.00022464,2]
[400097870,1767106232661,-500.0,0.00022464,2]
[400097872,1767106232672,-516.55106128,0.00022464,2]
[400097874,1767106232685,-500.0,0.00022464,2]
[400097876,1767106232695,-500.0,0.00022464,2]
[400097878,1767106232706,-588.86,0.00022464,2]
[400097880,1767106232717,-500.0,0.00022665,2]
[400097882,1767106232728,-500.0,0.00022665,2]
[400097884,1767106232739,-500.0,0.00022737,2]
[400097885,1767106232750,-500.0,0.00022939,2]
[400097887,1767106232765,-500.0,0.00022939,2]
[400097889,1767106232776,-500.0,0.00023011,2]
[400097891,1767106232788,-1741.35918892,0.00023212,2]
[400097893,1767106232798,-500.0,0.00023213,2]
[400097895,1767106232807,-500.0,0.00023213,2]
[400097897,1767106232822,-500.0,0.00023285,2]
[400097899,1767106232833,-500.0,0.00023288,2]
[400097901,1767106232843,-318.0,0.00023432,2]
[400097903,1767106232852,-500.0,0.00023487,2]
[400097905,1767106232861,-500.0,0.00023487,2]
[400097907,1767106232871,-500.0,0.00023496,2]
[400097909,1767106232880,-500.0,0.00023559,2]
[400097911,1767106232890,-285.0,0.00023698,2]
[400097913,1767106232900,-500.0,0.00023761,2]
[400097915,1767106232909,-500.0,0.00023761,2]
[400097916,1767106232918,-500.0,0.00023833,2]
[400097918,1767106232928,-500.0,0.00024035,2]
[400097920,1767106232938,-500.0,0.00024035,2]
[400097922,1767106232947,-1489.10124757,0.00024045,2]
[400097924,1767106232957,-500.0,0.00024107,2]
[400097926,1767106232971,-500.0,0.00024309,2]
[400097928,1767106232982,-500.0,0.00024309,2]
[400097930,1767106232992,-500.0,0.00024312,2]
[400097932,1767106233000,-500.0,0.00024381,2]
[400097934,1767106233010,-500.0,0.00024428,2]
[400097936,1767106233018,-500.0,0.00024511,2]
[400097938,1767106233027,-500.0,0.00024511,2]
[400097940,1767106233037,-5000.0,0.00024512,2]
[400097942,1767106233046,-500.0,0.00024512,2]
[400097944,1767106233055,-2109.42,0.00024512,2]
[400097946,1767106233064,-500.0,0.00024583,2]
[400097948,1767106233079,-500.0,0.00024583,2]
[400097950,1767106233088,-500.0,0.00024603,2]
[400097952,1767106233097,-500.0,0.00024607,2]
[400097954,1767106233106,-500.0,0.00024655,2]
[400097956,1767106233115,-500.0,0.00024656,2]
[400097958,1767106233123,-500.0,0.00024656,2]
[400097960,1767106233132,-500.0,0.00024656,2]
[400097962,1767106233142,-719.21,0.00024656,2]
[400097964,1767106233151,-500.0,0.00024656,2]
[400097966,1767106233160,-500.0,0.00024656,2]
[400097968,1767106233170,-151.0,0.00024658,8]
[400097970,1767106233179,-9015.81478946,0.00024661,2]
[400097972,1767106233188,-500.0,0.00024857,2]
[400097974,1767106233198,-500.0,0.00024857,2]
[400097975,1767106233207,-500.0,0.0002487,2]
[400097977,1767106233217,-500.0,0.0002487,2]
[400097978,1767106233226,-500.0,0.00024871,2]
[400097980,1767106233235,-2109.42,0.00024871,2]
[400097982,1767106233245,-500.0,0.00024872,2]
[400097984,1767106233254,-500.0,0.00024872,2]
[400097986,1767106233263,-233.06084831,0.00024872,2]
[400097988,1767106233273,-558.28907529,0.00024872,2]
[400097990,1767106233282,-588.86,0.00024872,2]
[400097992,1767106233291,-500.0,0.00024929,2]
[400097994,1767106233300,-500.0,0.0002493,2]
[400097996,1767106233309,-719.21,0.0002493,2]
[400097998,1767106233322,-500.0,0.0002493,2]
[400098000,1767106233332,-500.0,0.00024957,2]
[400098002,1767106233341,-500.0,0.00024998,2]
[400098013,1767106233452,-500.0,0.00024998,2]
[400098016,1767106233468,-500.0,0.00024998,2]
[400098018,1767106233477,-2109.42,0.00024998,2]
[400098020,1767106233486,-500.0,0.00024999,2]
[400098022,1767106233496,-500.0,0.00024999,2]
[400098024,1767106233505,-500.0,0.00024999,2]
[400098026,1767106233515,-278.81933069,0.00024999,2]
[400098028,1767106233525,-500.0,0.00024999,2]
[400098030,1767106233534,-500.0,0.00024999,2]
[400098031,1767106233543,-500.0,0.00024999,2]
[400098033,1767106233552,-500.0,0.00024999,2]
[400098035,1767106233563,-524.92390485,0.00024999,2]
[400098038,1767106233577,-588.86,0.00024999,2]
[400098039,1767106233587,-588.86,0.00024999,2]
[400098041,1767106233596,-588.86,0.00024999,2]
[400098043,1767106233606,-588.86,0.00024999,2]
[400098045,1767106233615,-588.86,0.00024999,2]
[400098047,1767106233625,-588.86,0.00024999,2]
[400098049,1767106233634,-588.86,0.00024999,2]
[400098051,1767106233644,-588.86,0.00024999,2]
[400098053,1767106233654,-588.86,0.00024999,2]
[400098055,1767106233663,-588.86,0.00024999,2]
[400098057,1767106233673,-588.86,0.00024999,2]
[400098059,1767106233684,-239.74693791,0.00025079,2]
[400098061,1767106233693,-332.57870872,0.00025079,2]
[400098063,1767106233704,-500.0,0.00025131,2]
[400098065,1767106233713,-500.0,0.00025144,2]
[400098067,1767106233723,-500.0,0.00025144,2]
[400098068,1767106233732,-500.0,0.00025144,2]
[400098070,1767106233742,-500.0,0.00025169,7]
[400098072,1767106233752,-500.0,0.00025203,2]
[400098074,1767106233762,-500.0,0.00025204,2]
[400098076,1767106233773,-719.21,0.00025204,2]
[400098078,1767106233782,-500.0,0.00025204,2]
[400098079,1767106233792,-188.65,0.00025395,10]
[400098080,1767106233801,-500.0,0.00025405,2]
[400098081,1767106233809,-500.0,0.00025477,2]
[400098082,1767106233821,-500.0,0.00025478,2]
[400098083,1767106233830,-719.21,0.00025478,2]
[400098084,1767106233840,-279.01470272,0.00025478,2]
[400098085,1767106233850,-329.45,0.000255,7]
[400098086,1767106233860,-500.0,0.00025679,2]
[400098087,1767106233870,-500.0,0.0002568,2]
[400098088,1767106233880,-500.0,0.0002568,2]
[400098089,1767106233890,-960.26489084,0.0002568,2]
[400098090,1767106233900,-211.82524794,0.0002568,2]
[400098091,1767106233910,-500.0,0.0002568,2]
[400098092,1767106233919,-960.26489084,0.0002568,2]
[400098093,1767106233927,-960.26489084,0.0002568,2]
[400098094,1767106233937,-452.82851662,0.0002568,2]
[400098095,1767106233946,-960.26489084,0.0002568,2]
[400098096,1767106233956,-960.26489084,0.0002568,2]
[400098097,1767106233966,-17264.2683918,0.00025682,2]
[400098098,1767106233975,-713.31133861,0.00025682,2]
[400098099,1767106233986,-500.0,0.00025693,2]
[400098100,1767106233996,-500.0,0.00025693,2]
[400098101,1767106234006,-5000.0,0.00025693,2]
[400098102,1767106234016,-312.0,0.00025698,2]
[400098103,1767106234026,-644.4,0.00025751,2]
[400098104,1767106234036,-500.0,0.00025752,2]
[400098105,1767106234045,-719.21,0.00025752,2]
[400098106,1767106234054,-507.32618552,0.00025802,2]
[400098107,1767106234065,-642.45370346,0.00025802,2]
[400098108,1767106234078,-500.0,0.00025953,2]
[400098109,1767106234088,-17264.2683918,0.00025988,2]
[400098110,1767106234098,-713.31133861,0.00025988,2]
[400098111,1767106234108,-588.86,0.00025989,2]
[400098112,1767106234118,-500.0,0.00025998,2]
[400098113,1767106234128,-2109.42,0.00025998,2]
[400098114,1767106234140,-588.86,0.00025999,2]
[400098115,1767106234150,-588.86,0.00025999,2]
[400098116,1767106234160,-156.87,0.00026,7]
[400098117,1767106234172,-500.0,0.00026026,2]
[400098118,1767106234183,-719.21,0.00026026,2]
[400098119,1767106234193,-1993.111595,0.000262,2]
[400098120,1767106234207,-500.0,0.00026227,2]
[400098121,1767106234218,-500.0,0.00026257,7]
[400098122,1767106234229,-500.0,0.000263,2]
[400098123,1767106234240,-719.21,0.000263,2]
[400098124,1767106234250,-151.0,0.00026333,2]
[400098125,1767106234263,-322.124,0.00026333,2]
[400098126,1767106234274,-297.0,0.00026443,7]
[400098127,1767106234284,-297.0,0.0002645,2]
[400098128,1767106234294,-500.0,0.00026501,2]
[400098129,1767106234311,-297.0,0.00026536,2]
[400098130,1767106234328,-2109.42,0.00026573,2]
[400098131,1767106234339,-500.0,0.00026574,2]
[400098132,1767106234351,-719.21,0.00026574,2]
[400098133,1767106234362,-1000.0,0.000267,2]
[400098134,1767106234378,-294.0,0.00026729,2]
[400098135,1767106234390,-17264.2683918,0.00026733,2]
[400098136,1767106234402,-713.31133861,0.00026733,2]
[400098137,1767106234423,-4473.0,0.00026771,2]
[400098138,1767106234437,-2224.236,0.00026771,2]
[400098139,1767106234448,-627.0,0.00026771,2]
[400098140,1767106234462,-1364.0,0.00026771,2]
[400098141,1767106234473,-220.679,0.00026771,2]
[400098142,1767106234484,-241.159,0.00026771,2]
[400098143,1767106234495,-231.977,0.00026771,2]
[400098144,1767106234506,-180.82799986,0.00026775,2]
[400098145,1767106234601,-319.17200014,0.00026775,2]
[400098146,1767106234612,-592.90934032,0.00026788,2]
[400098147,1767106234624,-410.04481136,0.00026788,2]
[400098164,1767106238775,-2967.76119716,0.00023332,2]
[400098166,1767106238796,-160.37970567,0.00024511,2]
[400098169,1767106238808,-339.62029433,0.00024511,2]
[400098171,1767106238817,-383.42526425,0.00024511,2]
[400098172,1767106238827,-500.0,0.00024511,2]
[400098174,1767106238847,-500.0,0.00024511,2]
[400098176,1767106238867,-310.81249185,0.00024511,2]
[400098178,1767106238879,-500.0,0.00024655,2]
[400098180,1767106238889,-311.51030691,0.00024871,2]
[400098183,1767106238911,-188.48969309,0.00024871,2]
[400098185,1767106238921,-500.0,0.00024998,2]
[400098187,1767106238931,-500.0,0.00025131,2]
[400098189,1767106238942,-500.0,0.00025405,2]
[400098191,1767106238951,-500.0,0.00025679,2]
[400098193,1767106238961,-960.26489084,0.0002568,2]
[400098195,1767106238970,-960.26489084,0.0002568,2]
[400098197,1767106238980,-960.26489084,0.0002568,2]
[400098199,1767106238989,-960.26489084,0.0002568,2]
[400098201,1767106238998,-960.26489084,0.0002568,2]
[400098203,1767106239008,-960.26489084,0.0002568,2]
[400098205,1767106239017,-960.26489084,0.0002568,2]
[400098208,1767106239027,-960.26489084,0.0002568,2]
[400098211,1767106239037,-960.26489084,0.0002568,2]
[400098213,1767106239046,-960.26489084,0.0002568,2]
[400098215,1767106239055,-960.26489084,0.0002568,2]
[400098216,1767106239065,-504.67406641,0.00025693,2]
[400098219,1767106239075,-500.0,0.00025953,2]
[400098221,1767106239085,-500.0,0.00026227,2]
[400098222,1767106239095,-500.0,0.00026501,2]
[400098224,1767106239104,-250.0,0.00026771,2]
[400098226,1767106239114,-500.0,0.00026775,2]
[400098228,1767106239125,-1106.46584832,0.00026788,2]
[400098230,1767106239134,-588.86,0.00026798,2]
[400098232,1767106239144,-962.59,0.000268,14]
[400098234,1767106239154,-294.0,0.00026826,2]
[400098236,1767106239163,-500.0,0.00026848,2]
[400098238,1767106239174,-719.21,0.00026848,2]
[400098240,1767106239185,-5000.0,0.00026875,2]
[400098242,1767106239195,-2866.53820544,0.00026888,2]
[400098244,1767106239206,-258.383,0.00026894,14]
[400098246,1767106239216,-329.45,0.000269,7]
[400098248,1767106239226,-294.0,0.00026904,2]
[400098250,1767106239236,-712.42687187,0.00026907,2]
[400098252,1767106239247,-712.42687187,0.0002691,2]
[400098254,1767106239258,-712.42687187,0.00026912,2]
[400098256,1767106239269,-712.42687187,0.00026915,2]
[400098258,1767106239279,-12376.03918572,0.00026917,2]
[400098260,1767106239289,-712.42687187,0.00026917,2]
[400098262,1767106239299,-392.55951857,0.00026963,2]
[400098264,1767106239308,-103585.610351,0.00026997,2]
[400098266,1767106239318,-4279.86803166,0.00026997,2]
[400098268,1767106239328,-183.16874953,0.00027,15]
[400098270,1767106239338,-507.38761741,0.00027,7]
[400098272,1767106239347,-165.0,0.00027,7]
[400098274,1767106239357,-17264.2683918,0.00027006,2]
[400098276,1767106239367,-713.31133861,0.00027006,2]
[400098278,1767106239378,-500.0,0.00027006,2]
[400098280,1767106239388,-500.0,0.00027006,2]
[400098282,1767106239399,-2109.42,0.00027006,2]
[400098284,1767106239408,-500.0,0.00027006,2]
[400098286,1767106239418,-172642.683918,0.00027007,2]
[400098288,1767106239430,-7133.1133861,0.00027007,2]
[400098290,1767106239440,-151.0,0.00027007,7]
[400098292,1767106239450,-151.0,0.00027007,7]
[400098294,1767106239466,-151.0,0.00027007,7]
[400098296,1767106239476,-151.0,0.00027007,7]
[400098298,1767106239487,-151.0,0.00027007,7]
[400098300,1767106239496,-246.945504,0.00027007,7]
[400098302,1767106239506,-151.0,0.00027007,7]
[400098304,1767106239516,-151.0,0.00027007,7]
[400098306,1767106239526,-151.0,0.00027007,7]
[400098307,1767106239535,-151.0,0.00027007,7]
[400098309,1767106239545,-151.0,0.00027007,7]
[400098311,1767106239555,-151.0,0.00027007,7]
[400098313,1767106239565,-151.0,0.00027007,7]
[400098315,1767106239578,-184.789263,0.00027007,7]
[400098317,1767106239589,-1048.920347,0.00027007,7]
[400098319,1767106239599,-1048.920347,0.00027007,7]
[400098321,1767106239609,-1048.920347,0.00027007,7]
[400098337,1767106239758,-1048.920347,0.00027007,7]
[400098339,1767106239768,-151.0,0.00027007,7]
[400098341,1767106239778,-500.0,0.00027016,2]
[400098343,1767106239790,-500.0,0.00027016,2]
[400098345,1767106239799,-500.0,0.00027016,2]
[400098347,1767106239809,-500.0,0.00027016,2]
[400098349,1767106239819,-500.0,0.00027016,2]
[400098351,1767106239831,-500.0,0.00027016,2]
[400098353,1767106239840,-500.0,0.00027016,2]
[400098355,1767106239851,-500.0,0.00027016,2]
[400098357,1767106239860,-500.0,0.00027016,2]
[400098359,1767106239870,-500.0,0.00027016,2]
[400098361,1767106239879,-500.0,0.00027016,2]
[400098363,1767106239889,-500.0,0.00027016,2]
[400098365,1767106239898,-500.0,0.00027016,2]
[400098367,1767106239907,-500.0,0.00027016,2]
[400098369,1767106239917,-500.0,0.00027016,2]
[400098371,1767106239927,-500.0,0.00027016,2]
[400098373,1767106239940,-151.49639709,0.00027016,2]
[400098375,1767106239950,-500.0,0.00027016,2]
[400098377,1767106239959,-500.0,0.00027016,2]
[400098379,1767106239969,-152.10007547,0.00027016,2]
[400098381,1767106239978,-2109.42,0.00027016,2]
[400098383,1767106239989,-2109.42,0.00027016,2]
[400098385,1767106239999,-2109.42,0.00027016,2]
[400098388,1767106240009,-2109.42,0.00027016,2]
[400098391,1767106240019,-2109.42,0.00027016,2]
[400098394,1767106240030,-2109.42,0.00027016,2]
[400098396,1767106240039,-2109.42,0.00027016,2]
[400098399,1767106240048,-2109.42,0.00027016,2]
[400098402,1767106240057,-2109.42,0.00027016,2]
[400098405,1767106240067,-2109.42,0.00027016,2]
[400098408,1767106240078,-2109.42,0.00027016,2]
[400098411,1767106240088,-2109.42,0.00027016,2]
[400098414,1767106240097,-2109.42,0.00027016,2]
[400098416,1767106240106,-2109.42,0.00027016,2]
[400098418,1767106240115,-2109.42,0.00027016,2]
[400098420,1767106240125,-2109.46615395,0.00027016,2]
[400098422,1767106240134,-500.0,0.00027016,2]
[400098424,1767106240144,-500.0,0.00027016,2]
[400098426,1767106240157,-500.0,0.00027016,2]
[400098428,1767106240167,-500.0,0.00027016,2]
[400098430,1767106240177,-500.0,0.00027016,2]
[400098432,1767106240198,-500.0,0.00027016,2]
[400098434,1767106240218,-500.0,0.00027016,2]
[400098436,1767106240227,-500.0,0.00027016,2]
[400098438,1767106240237,-500.0,0.00027016,2]
[400098440,1767106240246,-500.0,0.00027016,2]
[400098442,1767106240256,-500.0,0.00027016,2]
[400098444,1767106240265,-500.0,0.00027016,2]
[400098446,1767106240275,-500.0,0.00027016,2]
[400098448,1767106240286,-500.0,0.00027016,2]
[400098450,1767106240296,-500.0,0.00027016,2]
[400098452,1767106240306,-500.0,0.00027016,2]
[400098454,1767106240316,-500.0,0.00027016,2]
[400098456,1767106240328,-500.0,0.00027016,2]
[400098458,1767106240338,-274.08,0.00027016,2]
[400098460,1767106240347,-302854.18693166,0.00027017,2]
[400098463,1767106240361,-3807.88864286,0.00027017,2]
[400098465,1767106240374,-966.01590328,0.00027017,2]
[400098478,1767106240493,-3530.67262914,0.00027017,2]
[400098485,1767106240555,-2978.07579324,0.00027017,2]
[400098533,1767106245352,-284.56,0.0002535,2]
[400098543,1767106246621,-411.51517223,0.0002535,2]
[400098544,1767106529725,150.0,0.00012611,2]
[400098549,1767106595201,150.0,0.00012609,2]
[400098550,1767106659466,150.0,0.00012611,2]
[400098551,1767106724488,150.0,0.00012624,2]
[400098552,1767106726395,-150.0,0.00013211,2]
[400098553,1767106726535,-300.0,0.00013272,2]
[400098554,1767106726558,-632.30051449,0.00013273,2]
[400098555,1767106726581,-500.0,0.00013273,2]
[400098556,1767106726602,-500.0,0.00013273,2]
[400098557,1767106726624,-327.77283478,0.00013273,2]
[400098558,1767106726646,-428.55377639,0.00013273,2]
[400098559,1767106726667,-540.70781203,0.00013273,2]
[400098560,1767106726689,-295.08508419,0.00013273,2]
[400098561,1767106726711,-294.29169865,0.00013273,2]
[400098562,1767106726733,-10788.70013119,0.00013273,2]
[400098563,1767106726754,-500.39540392,0.00013273,2]